bitfinex-derivatives/quotes_SOLF0:USTF0_20251002
["timestamp","ask_amount","ask_price","bid_price","bid_amount"]
[1759420926452,27.70401767,227.17,227.15,7.66]
[1759420926657,1.70680503,227.23,227.15,7.66]
[1759420926845,27.70401767,227.17,227.15,7.66]
[1759420927245,3.9583,227.22,227.15,7.66]
[1759420927550,27.70401767,227.17,227.15,7.66]
[1759420927849,27.70401767,227.17,227.14,116.98]
[1759420928044,1.70680503,227.21,227.14,116.98]
[1759420928247,61.5566,227.29,227.15,7.66]
[1759420928248,27.70401767,227.18,227.15,7.66]
[1759420929049,27.70401767,227.17,227.15,7.66]
[1759420929449,1.70680503,227.23,227.14,116.98]
[1759420929749,27.70401767,227.17,227.14,116.98]
[1759420929938,1.70680503,227.21,227.14,116.98]
[1759420930145,1.70680503,227.25,227.15,9.36680503]
[1759420930344,27.70401767,227.2,227.15,1.70680503]
[1759420930649,27.70401767,227.2,227.18,7.66]
[1759420930848,320.52,227.31,227.18,7.66]
[1759420931150,320.52,227.31,227.19,32.06]
[1759420931151,27.70401767,227.21,227.19,32.06]
[1759420931648,1.70680503,227.25,227.19,32.06]
[1759420931851,27.70401767,227.21,227.19,32.06]
[1759420932246,1.70680503,227.25,227.19,32.06]
[1759420932450,27.70401767,227.21,227.19,32.06]
[1759420932852,1.70680503,227.25,227.19,32.06]
[1759420933055,27.70401767,227.21,227.19,32.06]
[1759420933249,27.70401767,227.21,227.19,39.72]
[1759420933556,1.70680503,227.27,227.2,7.66]
[1759420933849,27.70401767,227.24,227.19,9.36680503]
[1759420934054,27.70401767,227.25,227.21,7.66]
[1759420934948,27.70401767,227.24,227.2,68.7]
[1759420935147,27.70401767,227.24,227.2,61.04]
[1759420935352,27.70401767,227.24,227.21,7.66]
[1759420936056,27.70401767,227.24,227.19,100.56]
[1759420936250,27.70401767,227.23,227.16,5.66610503]
[1759420936451,61.5478,227.32,227.13,13.41708711]
[1759420936452,1.70680503,227.24,227.15,7.66]
[1759420936654,27.70401767,227.2,227.15,75.12]
[1759420936854,27.70401767,227.2,227.16,7.66]
[1759420937858,27.70401767,227.19,227.13,5.66660503]
[1759420938059,27.70401767,227.19,227.15,7.66]
[1759420938261,3.9581,227.23,227.15,7.66]
[1759420938450,27.70401767,227.19,227.15,7.66]
[1759420938760,27.70401767,227.19,227.14,113.1995]
[1759420938952,2.6616001,227.25,227.15,7.66]
[1759420939257,27.70401767,227.19,227.14,3.9595]
[1759420939466,27.70401767,227.19,227.16,7.66]
[1759420939652,3.958,227.24,227.15,116.9]
[1759420939857,27.70401767,227.19,227.16,7.66]
[1759420940049,42.08,227.33,227.16,7.66]
[1759420940050,27.70401767,227.23,227.16,10.3216001]
[1759420940552,2.6616001,227.31,227.17,3.9591]
[1759420940747,27.70401767,227.23,227.17,3.9591]
[1759420941147,3.9574,227.28,227.18,3.9588]
[1759420941361,27.70401767,227.23,227.19,7.66]
[1759420941657,27.70401767,227.24,227.19,3.9587]
[1759420941859,27.70401767,227.24,227.2,7.66]
[1759420942854,27.70401767,227.24,227.19,7.66]
[1759420943256,2.6616001,227.36,227.2,7.66]
[1759420943557,27.70401767,227.28,227.2,7.66]
[1759420943957,2.6616001,227.36,227.2,7.66]
[1759420944152,27.70401767,227.28,227.2,7.66]
[1759420944461,27.70401767,227.29,227.23,7.72]
[1759420944657,27.70401767,227.29,227.25,7.72]
[1759420944856,3.9564,227.33,227.24,109.24]
[1759420945051,27.70401767,227.29,227.25,7.72]
[1759420945557,3.9564,227.33,227.25,7.72]
[1759420945758,27.70401767,227.29,227.25,7.72]
[1759420946053,27.70401767,227.29,227.24,109.24]
[1759420946257,3.9564,227.33,227.24,109.24]
[1759420946258,3.9564,227.33,227.24,116.96]
[1759420946455,27.70401767,227.29,227.25,7.72]
[1759420946861,3.9564,227.33,227.25,7.72]
[1759420947057,27.70401767,227.29,227.16,61.5894]
[1759420947261,2.6616001,227.29,227.16,7.72]
[1759420947458,27.70401767,227.24,227.17,109.22]
[1759420948957,27.70401767,227.24,227.17,113.179]
[1759420949259,3.9569,227.31,227.19,7.72]
[1759420949465,27.70401767,227.26,227.19,7.72]
[1759420949758,4.0791939,227.5,227.25,2.6616001]
[1759420949963,4.0791939,227.5,227.26,116.94]
[1759420949964,27.70401767,227.34,227.26,116.94]
[1759420950461,61.5075,227.47,227.26,116.94]
[1759420950462,2.6616001,227.39,227.26,7.72]
[1759420950657,27.70401767,227.31,227.26,7.72]
[1759420950861,27.70401767,227.31,227.28,7.72]
[1759420951156,61.5192,227.43,227.27,109.22]
[1759420951363,27.70401767,227.33,227.27,109.22]
[1759420951563,27.70401767,227.34,227.28,7.63]
[1759420952862,2.6616001,227.41,227.28,7.63]
[1759420953057,27.70401767,227.33,227.27,109.22]
[1759420953265,27.70401767,227.33,227.27,116.85]
[1759420953567,3.9555,227.38,227.28,3.9572]
[1759420953764,27.70401767,227.34,227.28,3.9572]
[1759420955264,27.70401767,227.33,227.28,3.9572]
[1759420955459,2.6616001,227.4,227.24,14.2495001]
[1759420955460,3.9558,227.37,227.24,14.2495001]
[1759420955661,27.70401767,227.31,227.25,97.1]
[1759420956568,27.70401767,227.31,227.26,3.9576]
[1759420956867,27.70401767,227.31,227.27,7.63]
[1759420957064,61.5139,227.45,227.27,7.63]
[1759420957065,4.0791939,227.5,227.3,2.6616001]
[1759420957269,2.6616001,227.47,227.32,7.63]
[1759420957563,27.70401767,227.4,227.33,2.6616001]
[1759420957869,27.70401767,227.4,227.36,7.63]
[1759420958065,27.70401767,227.39,227.37,109.38]
[1759420958363,27.70401767,227.39,227.34,117.01]
[1759420958569,27.70401767,227.39,227.35,7.63]
[1759420959570,2.6616001,227.43,227.31,3.9567]
[1759420959772,2.6616001,227.43,227.3,7.63]
[1759420959965,27.70401767,227.37,227.31,28.02]
[1759420960873,27.70401767,227.36,227.31,28.02]
[1759420961067,27.70401767,227.36,227.32,7.63]
[1759420961472,2.6616001,227.44,227.31,28.02]
[1759420961669,61.5075,227.47,227.31,28.02]
[1759420961670,27.70401767,227.36,227.31,28.02]
[1759420961976,27.70401767,227.36,227.32,7.63]
[1759420962174,27.70401767,227.35,227.28,3.9572]
[1759420962380,27.70401767,227.35,227.29,109.38]
[1759420962581,2.6616001,227.42,227.29,109.38]
[1759420962777,27.70401767,227.35,227.29,109.38]
[1759420962977,27.70401767,227.35,227.29,113.3369]
[1759420963278,2.6616001,227.44,227.3,7.63]
[1759420963474,27.70401767,227.35,227.31,109.38]
[1759420963780,2.6616001,227.44,227.31,117.01]
[1759420964082,27.70401767,227.37,227.32,7.63]
[1759420964475,2.6616001,227.44,227.32,7.63]
[1759420964675,2.6616001,227.44,227.31,109.38]
[1759420964676,27.70401767,227.37,227.31,117.01]
[1759420965074,2.6616001,227.44,227.31,7.63]
[1759420965279,27.70401767,227.37,227.33,7.63]
[1759420965677,3.9553,227.4,227.33,7.63]
[1759420965980,27.70401767,227.37,227.33,7.63]
[1759420966180,27.70401767,227.37,227.32,109.34]
[1759420966482,3.9555,227.39,227.33,7.63]
[1759420966670,27.70401767,227.37,227.33,7.63]
[1759420967077,2.6616001,227.43,227.31,32.95]
[1759420967078,3.955,227.41,227.31,32.95]
[1759420967276,27.70401767,227.37,227.31,32.95]
[1759420967576,27.70401767,227.37,227.31,7.63]
[1759420967882,27.70401767,227.36,227.32,7.63]
[1759420968284,2.6616001,227.43,227.32,7.63]
[1759420968485,27.70401767,227.36,227.32,7.63]
[1759420968881,2.6616001,227.43,227.32,7.63]
[1759420969083,27.70401767,227.36,227.32,7.63]
[1759420969283,2.6616001,227.43,227.32,7.63]
[1759420969581,27.70401767,227.36,227.3,49.64]
[1759420969783,27.70401767,227.36,227.3,57.27]
[1759420970286,3.955,227.41,227.3,57.27]
[1759420970488,27.70401767,227.36,227.3,57.27]
[1759420971785,27.70401767,227.36,227.3,7.63]
[1759420971984,27.70401767,227.34,227.3,7.63]
[1759420972679,27.70401767,227.34,227.29,3.9571]
[1759420973283,27.70401767,227.34,227.3,7.63]
[1759420975387,27.70401767,227.33,227.27,113.1374]
[1759420975580,27.70401767,227.33,227.28,7.63]
[1759420976179,2.6616001,227.42,227.28,7.63]
[1759420976491,27.70401767,227.33,227.27,120.7674]
[1759420976789,27.70401767,227.33,227.27,11.5874]
[1759420976980,61.5157,227.44,227.29,10.2916001]
[1759420977182,27.70401767,227.36,227.29,10.2916001]
[1759420977586,27.70401767,227.36,227.29,7.63]
[1759420977986,27.70401767,227.36,227.3,109.16]
[1759420978585,27.70401767,227.36,227.3,113.1168]
[1759420979392,27.70401767,227.33,227.31,109.16]
[1759420979785,3.9556,227.38,227.31,109.16]
[1759420979991,2.6616001,227.41,227.32,7.63]
[1759420979992,27.70401767,227.33,227.32,7.63]
[1759420980393,2.6616001,227.44,227.32,7.63]
[1759420980588,27.70401767,227.35,227.31,113.1166]
[1759420980792,27.70401767,227.35,227.32,7.63]
[1759420980992,27.70401767,227.35,227.31,113.1166]
[1759420981193,27.70401767,227.35,227.32,7.63]
[1759420981390,3.9549,227.42,227.32,7.44]
[1759420981587,3.9549,227.42,227.32,3.9564]
[1759420981794,27.70401767,227.37,227.32,3.9564]
[1759420981994,27.70401767,227.37,227.33,7.44]
[1759420982195,27.70401767,227.37,227.32,3.9564]
[1759420982592,27.70401767,227.37,227.33,7.44]
[1759420982795,27.70401767,227.37,227.32,3.9564]
[1759420982991,27.70401767,227.37,227.26,61.5626]
[1759420982992,27.70401767,227.35,227.29,3.9569]
[1759420983201,27.70401767,227.34,227.3,109.16]
[1759420983501,27.70401767,227.35,227.31,3.9566]
[1759420983696,3.9548,227.42,227.32,7.44]
[1759420983896,27.64,227.51,227.32,7.44]
[1759420984200,7.9059,227.53,227.32,7.44]
[1759420984201,27.70401767,227.37,227.32,7.44]
[1759420984401,27.70401767,227.37,227.31,2.6616001]
[1759420984700,27.70401767,227.37,227.32,7.44]
[1759420985001,27.70401767,227.37,227.31,7.44]
[1759420986195,3.9544,227.45,227.32,3.9564]
[1759420986395,3.9544,227.45,227.31,7.44]
[1759420986603,3.9541,227.47,227.34,7.44]
[1759420986802,27.70401767,227.42,227.34,7.44]
[1759420987099,27.70401767,227.4,227.34,7.44]
[1759420987595,2.6616001,227.49,227.35,109.14]
[1759420987796,27.70401767,227.4,227.35,109.14]
[1759420988102,27.70401767,227.41,227.35,116.58]
[1759420988496,3.954,227.47,227.37,7.44]
[1759420988798,27.70401767,227.41,227.37,7.44]
[1759420989190,6.740794,227.5,227.36,11.3957]
[1759420989397,2.6616001,227.49,227.37,24.5]
[1759420989601,12.48792908,227.52,227.39,7.44]
[1759420989898,27.70401767,227.48,227.41,7.44]
[1759420990401,12.48792908,227.52,227.41,10.1016001]
[1759420990600,27.70401767,227.49,227.41,10.1016001]
[1759420990996,12.48792908,227.52,227.43,3.9545]
[1759420991202,12.48792908,227.52,227.44,7.44]
[1759420991399,27.70401767,227.5,227.45,2.6616001]
[1759420991704,27.70401767,227.51,227.45,10.1016001]
[1759420991900,12.48792908,227.52,227.45,14.0559001]
[1759420992096,40.19194675,227.52,227.45,14.0559001]
[1759420992496,12.48792908,227.52,227.49,7.44]
[1759420992695,12.48792908,227.52,227.5,109.22]
[1759420992899,12.48792908,227.52,227.51,7.44]
[1759420994203,12.48792908,227.52,227.51,109.22]
[1759420994408,40.19194675,227.52,227.51,109.22]
[1759420994603,40.19194675,227.52,227.45,7.44]
[1759420994901,12.48792908,227.52,227.45,7.44]
[1759420995107,27.70401767,227.49,227.46,56.3]
[1759420995300,27.70401767,227.49,227.46,63.74]
[1759420996103,12.48792908,227.52,227.42,5.73403082]
[1759420996308,27.70401767,227.48,227.42,5.73403082]
[1759420996602,27.70401767,227.48,227.43,35.8]
[1759420996797,12.48792908,227.52,227.42,5.73403082]
[1759420996998,27.70401767,227.47,227.44,109.26]
[1759420997706,27.70401767,227.46,227.44,109.26]
[1759420998007,27.70401767,227.46,227.42,13.17403082]
[1759420998008,27.70401767,227.46,227.43,109.26]
[1759420998205,27.70401767,227.45,227.43,109.24]
[1759420998908,27.70401767,227.45,227.43,111.08087169]
[1759420999108,27.70401767,227.45,227.43,109.24]
[1759420999900,27.70401767,227.45,227.42,5.73403082]
[1759421000106,27.70401767,227.45,227.43,109.2]
[1759421000504,27.66401767,227.45,227.43,118.48087169]
[1759421001407,27.66401767,227.45,227.43,116.64]
[1759421001609,27.66401767,227.45,227.43,118.48087169]
[1759421001804,18.28190077,227.52,227.43,111.04087169]
[1759421002007,1.84087169,227.51,227.43,111.04087169]
[1759421002200,27.66401767,227.45,227.43,118.48087169]
[1759421002406,27.66401767,227.46,227.44,7.44]
[1759421002908,12.48792908,227.52,227.45,1.84087169]
[1759421003106,27.66401767,227.48,227.46,7.44]
[1759421003310,27.66401767,227.49,227.47,9.28087169]
[1759421003503,27.66401767,227.49,227.48,109.16]
[1759421003704,27.66401767,227.49,227.48,116.59]
[1759421004101,27.66401767,227.49,227.48,109.16]
[1759421004302,12.48792908,227.52,227.48,109.16]
[1759421004506,27.66401767,227.5,227.49,7.43]
[1759421004706,12.48792908,227.52,227.48,109.16]
[1759421004912,12.48792908,227.52,227.48,116.59]
[1759421005108,27.66401767,227.51,227.48,7.43]
[1759421005309,27.66401767,227.51,227.49,116.59]
[1759421005511,12.48792908,227.52,227.49,109.16]
[1759421005806,27.66401767,227.51,227.49,109.16]
[1759421006011,27.66401767,227.51,227.49,116.59]
[1759421006207,61.4275,227.77,227.5,2.28087169]
[1759421006412,1.84087169,227.71,227.58,7.43]
[1759421006610,61.4266,227.77,227.58,7.43]
[1759421006611,27.66401767,227.63,227.58,9.27087169]
[1759421006811,27.66401767,227.61,227.59,109.66]
[1759421007013,27.66401767,227.61,227.57,7.43]
[1759421007604,27.66401767,227.6,227.58,109.66]
[1759421007804,27.66401767,227.6,227.57,7.43]
[1759421008018,27.66401767,227.6,227.58,51.38]
[1759421008413,27.66401767,227.6,227.53,1.84087169]
[1759421008917,27.66401767,227.59,227.55,7.43]
[1759421009208,61.4483,227.69,227.47,381.3842]
[1759421009209,27.66401767,227.57,227.51,7.43]
[1759421009411,1.84087169,227.59,227.52,109.64]
[1759421009614,27.66401767,227.54,227.53,7.43]
[1759421009817,97.3427,227.71,227.53,9.27087169]
[1759421010019,27.66401767,227.57,227.54,7.43]
[1759421010316,1.84087169,227.64,227.55,109.68]
[1759421010510,61.4514,227.68,227.5,7.43]
[1759421010511,1.84087169,227.61,227.5,7.43]
[1759421010812,27.66401767,227.54,227.51,118.97087169]
[1759421011009,27.66401767,227.54,227.51,117.13]
[1759421011214,1.84087169,227.6,227.51,117.13]
[1759421011509,27.66401767,227.53,227.52,109.68]
[1759421011708,27.66401767,227.56,227.53,7.21]
[1759421011913,27.66401767,227.57,227.53,9.05087169]
[1759421012113,27.66401767,227.57,227.54,7.21]
[1759421012313,27.66401767,227.57,227.53,9.05087169]
[1759421012509,3.9506,227.67,227.53,7.21]
[1759421012705,27.66401767,227.58,227.52,111.52087169]
[1759421012908,27.66401767,227.59,227.55,7.21]
[1759421013511,61.4369,227.73,227.55,7.21]
[1759421013714,27.66401767,227.61,227.58,1.84087169]
[1759421014016,1.84087169,227.68,227.59,109.68]
[1759421014316,27.66401767,227.62,227.59,109.68]
[1759421014504,1.84087169,227.67,227.6,7.21]
[1759421014709,27.66401767,227.62,227.6,65.31]
[1759421015216,1.84087169,227.73,227.61,9.05087169]
[1759421015417,13.4319186,227.79,227.6,71.53654564]
[1759421015418,27.66401767,227.68,227.64,9.05087169]
[1759421015607,27.66401767,227.68,227.65,117.27]
[1759421016119,1.84087169,227.73,227.65,117.27]
[1759421016316,27.66401767,227.68,227.65,117.27]
[1759421016718,61.4279,227.77,227.65,110.06]
[1759421016911,1.84087169,227.71,227.65,110.04]
[1759421017112,1.84087169,227.67,227.59,1.84087169]
[1759421017416,27.66401767,227.65,227.61,7.21]
[1759421018017,1.84087169,227.68,227.61,7.21]
[1759421018218,27.66401767,227.65,227.6,111.92087169]
[1759421018616,1.84087169,227.69,227.61,7.21]
[1759421018815,27.66401767,227.65,227.6,111.92087169]
[1759421019119,27.66401767,227.65,227.61,7.21]
[1759421019311,1.84087169,227.68,227.61,7.21]
[1759421019510,27.66401767,227.65,227.62,7.21]
[1759421019816,27.66401767,227.66,227.61,1.84087169]
[1759421020012,3.9487,227.78,227.62,3.9513]
[1759421020216,27.66401767,227.67,227.62,3.9513]
[1759421020416,27.66401767,227.67,227.63,7.21]
[1759421020612,13.46554556,227.8,227.63,9.05087169]
[1759421020819,324.81111344,227.91,227.67,7.21]
[1759421021014,27.66401767,227.75,227.68,36.36]
[1759421021215,399.74,227.91,227.68,36.36]
[1759421021418,27.66401767,227.75,227.69,88.08]
[1759421021718,3.9484,227.8,227.7,110.06]
[1759421021920,27.66401767,227.71,227.67,7.21]
[1759421022415,3.9488,227.77,227.68,19.18]
[1759421022620,27.66401767,227.71,227.69,7.21]
[1759421022916,27.66401767,227.71,227.68,19.18]
[1759421023115,1.84087169,227.75,227.68,19.18]
[1759421023316,27.66401767,227.71,227.68,19.18]
[1759421023721,1.84087169,227.75,227.66,1.84087169]
[1759421023910,27.66401767,227.71,227.67,51.18]
[1759421024115,1.84087169,227.76,227.69,7.21]
[1759421024414,27.66401767,227.73,227.67,51.18]
[1759421024613,1.84087169,227.76,227.67,53.02087169]
[1759421024813,61.4126,227.82,227.67,53.02087169]
[1759421024814,27.66401767,227.73,227.67,53.02087169]
[1759421025216,3.9484,227.8,227.67,53.02087169]
[1759421025417,27.66401767,227.73,227.67,53.02087169]
[1759421025812,1.84087169,227.76,227.67,51.18]
[1759421026118,27.66401767,227.73,227.67,53.02087169]
[1759421026417,27.66401767,227.74,227.68,9.05087169]
[1759421026811,1.84087169,227.77,227.68,9.05087169]
[1759421027012,27.66401767,227.74,227.69,34.44]
[1759421027224,27.66401767,227.74,227.7,7.21]
[1759421027417,1.84087169,227.78,227.7,7.21]
[1759421027614,27.66401767,227.74,227.69,34.44]
[1759421027813,27.66401767,227.76,227.7,9.05087169]
[1759421028019,27.66401767,227.76,227.7,7.21]
[1759421028819,27.66401767,227.75,227.69,36.28087169]
[1759421029219,1.84087169,227.78,227.69,36.28087169]
[1759421029428,61.4056,227.85,227.7,1.84087169]
[1759421029624,27.66401767,227.77,227.7,1.84087169]
[1759421030127,27.66401767,227.77,227.69,38.3901]
[1759421030329,27.66401767,227.77,227.69,40.23097169]
[1759421030532,1.84087169,227.8,227.71,1.84087169]
[1759421030726,27.66401767,227.77,227.71,1.84087169]
[1759421030927,27.66401767,227.77,227.7,7.21]
[1759421031132,1.84087169,227.8,227.71,1.84087169]
[1759421031333,27.66401767,227.77,227.71,1.84087169]
[1759421031530,27.66401767,227.77,227.71,5.79067169]
[1759421031827,3.9477,227.84,227.72,7.21]
[1759421032027,27.66401767,227.79,227.73,1.84087169]
[1759421032231,27.66401767,227.79,227.73,5.79037169]
[1759421032432,1.84087169,227.83,227.73,1.84087169]
[1759421032632,8.03968147,227.91,227.75,5.78997169]
[1759421032828,27.66401767,227.82,227.76,7.21]
[1759421033034,27.66401767,227.83,227.77,24.28]
[1759421033224,4.09318147,227.91,227.75,88.12]
[1759421033426,1.84087169,227.8,227.74,91.48]
[1759421033626,27.66401767,227.79,227.74,98.69]
[1759421033929,27.66401767,227.79,227.74,109.88]
[1759421034126,27.66401767,227.79,227.72,1.84087169]
[1759421034324,1.84087169,227.81,227.73,89.02]
[1759421034525,27.66401767,227.79,227.73,89.02]
[1759421034832,27.66401767,227.79,227.75,7.21]
[1759421035032,27.66401767,227.79,227.66,7.21]
[1759421035238,27.66401767,227.79,227.72,1.84087169]
[1759421035727,1.84087169,227.78,227.7,52.26]
[1759421035928,1.84087169,227.72,227.62,7.21]
[1759421036128,1.84087169,227.68,227.57,81.23683751]
[1759421036324,61.432,227.75,227.56,326.75]
[1759421036325,1.84087169,227.66,227.58,109.98]
[1759421036525,61.432,227.75,227.56,319.54]
[1759421036526,61.4511,227.68,227.56,319.54]
[1759421036729,27.66401767,227.59,227.56,319.54]
[1759421036924,1.84087169,227.63,227.56,319.54]
[1759421037127,1.84087169,227.63,227.56,326.75]
[1759421037326,1.84087169,227.7,227.6,1.84087169]
[1759421037539,1.84087169,227.73,227.64,1.84087169]
[1759421037737,27.66401767,227.7,227.64,1.84087169]
[1759421037939,61.3938,227.89,227.68,1.84087169]
[1759421038238,27.66401767,227.72,227.65,7.21]
[1759421038538,27.66401767,227.72,227.66,111.22]
[1759421038837,27.66401767,227.7,227.67,111.22]
[1759421039027,27.66401767,227.7,227.65,9.05087169]
[1759421039028,27.66401767,227.7,227.65,7.21]
[1759421039338,27.66401767,227.7,227.58,61.4764]
[1759421039339,27.66401767,227.7,227.64,1.84087169]
[1759421039538,27.66401767,227.7,227.66,7.21]
[1759421039733,1.84087169,227.76,227.66,13.00157169]
[1759421039933,27.66401767,227.72,227.66,13.00157169]
[1759421040133,27.66401767,227.72,227.66,9.05087169]
[1759421040334,61.3838,227.93,227.65,111.22]
[1759421040335,3.9475,227.85,227.68,7.21]
[1759421040533,27.66401767,227.77,227.68,7.21]
[1759421041138,13.42221561,227.91,227.71,7.21]
[1759421041334,4.4139651,227.89,227.71,7.21]
[1759421041637,27.66401767,227.74,227.71,20.9]
[1759421042039,4.4139651,227.85,227.71,20.9]
[1759421042239,27.66401767,227.74,227.71,20.9]
[1759421042544,27.66401767,227.74,227.64,7.39]
[1759421042840,27.66401767,227.74,227.65,111.24]
[1759421043247,4.4139651,227.79,227.64,7.39]
[1759421043445,4.4139651,227.75,227.65,111.24]
[1759421043744,27.66401767,227.68,227.65,111.24]
[1759421043939,27.66401767,227.67,227.65,111.24]
[1759421044543,27.66401767,227.66,227.59,11.3418]
[1759421044741,27.66401767,227.65,227.6,118.61]
[1759421045038,27.66401767,227.65,227.6,111.22]
[1759421045234,4.4139651,227.74,227.61,7.39]
[1759421045439,61.4221,227.79,227.61,7.39]
[1759421045440,4.4139651,227.76,227.62,7.39]
[1759421045640,27.66401767,227.67,227.61,3.9515]
[1759421045935,4.4139651,227.72,227.6,118.61]
[1759421046136,4.4139651,227.68,227.56,319.54]
[1759421046344,27.66401767,227.6,227.56,319.54]
[1759421046540,27.66401767,227.6,227.56,326.93]
[1759421047045,4.4139651,227.72,227.57,7.39]
[1759421047246,4.4139651,227.72,227.56,330.8824]
[1759421047439,27.66401767,227.63,227.56,326.93]
[1759421047641,27.66401767,227.64,227.56,326.93]
[1759421048040,27.66401767,227.62,227.56,326.93]
[1759421048346,27.66401767,227.6,227.57,111.2]
[1759421048942,27.66401767,227.6,227.56,319.54]
[1759421049244,4.4139651,227.64,227.51,7.39]
[1759421049442,3.9514,227.62,227.52,111.18]
[1759421049747,3.9514,227.62,227.46,4.14971]
[1759421049748,27.66401767,227.53,227.5,7.39]
[1759421049943,4.4139651,227.6,227.5,7.39]
[1759421050245,27.66401767,227.52,227.49,118.63]
[1759421050442,27.66401767,227.5,227.46,118.82571]
[1759421050647,27.66401767,227.48,227.46,111.43571]
[1759421051147,51.4939651,227.6,227.46,111.43571]
[1759421051349,91.88,227.62,227.47,7.39]
[1759421051546,27.66401767,227.5,227.46,172.94501]
[1759421051745,61.4405,227.72,227.49,61.5012]
[1759421051746,32.4939651,227.67,227.49,61.5012]
[1759421051949,4.4139651,227.67,227.49,68.8912]
[1759421052149,4.4139651,227.67,227.52,7.39]
[1759421052350,27.66401767,227.57,227.52,111.4]
[1759421052648,27.66401767,227.57,227.55,7.39]
[1759421052843,27.66401767,227.57,227.52,111.4]
[1759421053042,27.66401767,227.56,227.53,7.39]
[1759421053641,4.4139651,227.67,227.53,11.3429]
[1759421053841,27.66401767,227.56,227.53,7.39]
[1759421054040,4.4139651,227.63,227.53,111.32]
[1759421054243,61.4516,227.68,227.53,111.32]
[1759421054244,27.66401767,227.55,227.53,111.32]
[1759421054448,27.66401767,227.55,227.47,7.39]
[1759421054648,4.4139651,227.61,227.48,111.34]
[1759421054850,27.66401767,227.51,227.48,111.34]
[1759421055049,4.4139651,227.62,227.48,111.34]
[1759421055250,4.4139651,227.58,227.46,0.19571]
[1759421055453,17.73445231,227.58,227.46,0.19571]
[1759421055649,4.4139651,227.58,227.46,0.19571]
[1759421055856,27.66401767,227.5,227.46,0.19571]
[1759421056154,27.66401767,227.5,227.46,11.53971]
[1759421056354,57.1539651,227.62,227.46,4.14971]
[1759421056558,27.66401767,227.51,227.47,7.39]
[1759421057055,27.66401767,227.5,227.47,7.39]
[1759421057250,27.66401767,227.48,227.46,0.19571]
[1759421057756,4.4139651,227.62,227.46,7.58571]
[1759421057957,27.66401767,227.5,227.46,119.08571]
[1759421058352,79.13294123,227.62,227.46,119.08571]
[1759421058353,4.4139651,227.58,227.46,111.69571]
[1759421058558,27.66401767,227.5,227.46,119.08571]
[1759421059053,8.3657651,227.6,227.47,3.954]
[1759421059357,27.66401767,227.51,227.47,3.954]
[1759421059558,27.66401767,227.51,227.47,11.344]
[1759421060053,27.66401767,227.51,227.46,111.65571]
[1759421060254,27.66401767,227.51,227.47,118.81]
[1759421060952,27.66401767,227.5,227.47,111.42]
[1759421061353,3.9522,227.58,227.46,4.14981]
[1759421061554,3.9516,227.61,227.49,7.39]
[1759421061748,3.9516,227.61,227.48,3.9538]
[1759421061749,7.393671,227.63,227.48,7.39]
[1759421061948,27.66401767,227.53,227.47,108.55]
[1759421062152,61.468,227.62,227.46,0.19571]
[1759421062348,61.4624,227.64,227.46,0.19571]
[1759421062349,61.4816,227.57,227.46,0.19571]
[1759421062553,27.66401767,227.47,227.46,0.19571]
[1759421062955,28.10401767,227.47,227.46,0.19571]
[1759421063153,28.10401767,227.47,227.37,97.25]
[1759421063454,7.393671,227.53,227.32,68.8656]
[1759421063455,27.66401767,227.41,227.32,68.8656]
[1759421063655,27.66401767,227.38,227.33,111.4]
[1759421063852,27.66401767,227.38,227.34,7.32]
[1759421064055,61.4945,227.52,227.34,7.32]
[1759421064256,27.66401767,227.38,227.34,7.32]
[1759421064461,61.4945,227.52,227.34,7.32]
[1759421064462,27.66401767,227.37,227.34,7.32]
[1759421064654,27.66401767,227.37,227.34,3.9562]
[1759421064858,31.6,227.5,227.34,7.32]